fUST/lending_fUST_20250530
["ID","MTS","AMOUNT","RATE_DAILY","PERIOD"]
[363176504,1748613047267,-430.0,0.00019178,2]
[363176505,1748613047277,-430.0,0.00019178,2]
[363176506,1748613047287,-430.0,0.00019178,2]
[363176507,1748613047297,-430.0,0.00019178,2]
[363176508,1748613047307,-430.0,0.00019178,2]
[363176509,1748613047316,-495.09,0.00019178,2]
[363176510,1748613047325,-410.64991967,0.00019178,2]
[363176511,1748613047335,-430.0,0.00019178,2]
[363176512,1748613047345,-430.0,0.00019178,2]
[363176513,1748613047355,-430.0,0.00019178,2]
[363176514,1748613047364,-430.0,0.00019178,2]
[363176515,1748613047374,-430.0,0.00019178,2]
[363176516,1748613047383,-439.95,0.00019178,2]
[363176517,1748613047393,-537.30722969,0.00019178,2]
[363176518,1748613047403,-430.0,0.00019178,2]
[363176519,1748613047412,-430.0,0.00019178,2]
[363176520,1748613047425,-430.0,0.00019178,2]
[363176521,1748613047435,-430.0,0.00019178,2]
[363176522,1748613047444,-430.0,0.00019178,2]
[363176523,1748613047455,-430.0,0.00019178,2]
[363176524,1748613047465,-430.0,0.00019178,2]
[363176525,1748613047475,-430.0,0.00019178,2]
[363176526,1748613047485,-514.85220983,0.00019178,2]
[363176527,1748613047495,-639.88,0.00019178,2]
[363176528,1748613047506,-471.17266525,0.00019178,2]
[363176529,1748613047516,-430.0,0.00019178,2]
[363176530,1748613047526,-432.31827173,0.00019178,2]
[363176531,1748613047536,-355.68672287,0.00019178,2]
[363176532,1748613047545,-430.0,0.00019178,2]
[363176533,1748613047556,-430.0,0.00019178,2]
[363176534,1748613047566,-351.59836862,0.00019178,2]
[363176535,1748613047575,-2025.31,0.00019178,2]
[363176536,1748613047585,-430.0,0.00019178,2]
[363176537,1748613047595,-4340.74,0.00019178,2]
[363176538,1748613047604,-430.0,0.00019178,2]
[363176539,1748613047614,-430.0,0.00019178,2]
[363176540,1748613047624,-430.0,0.00019178,2]
[363176541,1748613047633,-430.0,0.00019178,2]
[363176542,1748613047643,-430.0,0.00019178,2]
[363176543,1748613047653,-430.0,0.00019178,2]
[363176544,1748613047663,-430.0,0.00019178,2]
[363176545,1748613047676,-430.0,0.00019178,2]
[363176546,1748613047685,-430.0,0.00019178,2]
[363176547,1748613047696,-151.0,0.00019178,2]
[363176548,1748613047705,-500.0,0.00019178,2]
[363176549,1748613047715,-199.7785998,0.00019178,2]
[363176550,1748613047724,-207.4,0.00019197,2]
[363176551,1748613047851,-5000.0,0.00019197,2]
[363176552,1748613047861,-156.587,0.00019233,2]
[363176553,1748613047871,-952.58375261,0.00019243,2]
[363176554,1748613047881,-983.79,0.00019253,2]
[363176555,1748613047891,-162.380719,0.00019288,2]
[363176556,1748613047901,-6190.22188736,0.00019314,2]
[363176557,1748613047911,-72096.96236726,0.00019329,2]
[363176558,1748613047922,-168.3888056,0.00019343,2]
[363176559,1748613047931,-174.61919141,0.00019398,2]
[363176560,1748613047941,-500.0,0.0001945,2]
[363176561,1748613047951,-500.0,0.0001945,2]
[363176562,1748613047961,-500.0,0.00019451,2]
[363176563,1748613047970,-500.0,0.00019451,2]
[363176564,1748613047980,-500.0,0.00019451,2]
[363176565,1748613047989,-430.0,0.00019451,2]
[363176566,1748613047999,-430.0,0.00019451,2]
[363176567,1748613048008,-1987.99,0.00019451,2]
[363176568,1748613048018,-1285.02,0.00019451,2]
[363176569,1748613048028,-430.0,0.00019451,2]
[363176570,1748613048038,-430.0,0.00019451,2]
[363176571,1748613048048,-430.0,0.00019451,2]
[363176572,1748613048058,-430.0,0.00019451,2]
[363176573,1748613048068,-1699.19,0.00019451,2]
[363176574,1748613048079,-533.82,0.00019451,2]
[363176575,1748613048089,-430.0,0.00019451,2]
[363176576,1748613048099,-5539.24,0.00019451,2]
[363176577,1748613048109,-430.0,0.00019451,2]
[363176578,1748613048118,-430.0,0.00019451,2]
[363176579,1748613048128,-1112.77,0.00019451,2]
[363176580,1748613048138,-430.0,0.00019451,2]
[363176581,1748613048148,-2177.71,0.00019451,2]
[363176582,1748613048157,-430.0,0.00019451,2]
[363176583,1748613048168,-430.0,0.00019452,2]
[363176584,1748613048178,-430.0,0.00019452,2]
[363176585,1748613048188,-430.0,0.00019452,2]
[363176586,1748613048198,-430.0,0.00019452,2]
[363176587,1748613048208,-430.0,0.00019452,2]
[363176588,1748613048217,-430.0,0.00019452,2]
[363176589,1748613048227,-488.7955054,0.00019452,2]
[363176590,1748613048237,-430.0,0.00019452,2]
[363176591,1748613048247,-430.0,0.00019452,2]
[363176592,1748613048256,-824.46,0.00019452,2]
[363176593,1748613048266,-607.68,0.00019452,2]
[363176594,1748613048275,-430.0,0.00019452,2]
[363176595,1748613048285,-430.0,0.00019452,2]
[363176596,1748613048294,-430.0,0.00019452,2]
[363176597,1748613048303,-430.0,0.00019452,2]
[363176598,1748613048313,-652.05,0.00019452,2]
[363176599,1748613048323,-430.0,0.00019452,2]
[363176600,1748613048332,-430.0,0.00019452,2]
[363176601,1748613048341,-430.0,0.00019452,2]
[363176602,1748613048351,-430.0,0.00019452,2]
[363176603,1748613048361,-430.0,0.00019452,2]
[363176604,1748613048371,-192.67,0.00019452,2]
[363176605,1748613048381,-229.34414569,0.00019452,2]
[363176606,1748613048391,-216.19496773,0.00019452,2]
[363176607,1748613048401,-430.0,0.00019452,2]
[363176608,1748613048410,-430.0,0.00019452,2]
[363176609,1748613048421,-430.0,0.00019452,2]
[363176610,1748613048431,-430.0,0.00019452,2]
[363176611,1748613048439,-430.0,0.00019452,2]
[363176612,1748613048447,-430.0,0.00019452,2]
[363176613,1748613048456,-430.0,0.00019452,2]
[363176614,1748613048465,-993.61,0.00019452,2]
[363176615,1748613048474,-430.0,0.00019452,2]
[363176616,1748613048482,-430.0,0.00019452,2]
[363176617,1748613048491,-430.0,0.00019452,2]
[363176618,1748613048501,-430.0,0.00019452,2]
[363176619,1748613048510,-430.0,0.00019452,2]
[363176620,1748613048519,-430.0,0.00019452,2]
[363176621,1748613048528,-430.0,0.00019452,2]
[363176622,1748613048537,-430.0,0.00019452,2]
[363176623,1748613048547,-430.0,0.00019452,2]
[363176624,1748613048556,-430.0,0.00019452,2]
[363176625,1748613048564,-430.0,0.00019452,2]
[363176626,1748613048573,-2452.41,0.00019452,2]
[363176627,1748613048583,-430.0,0.00019452,2]
[363176628,1748613048592,-430.0,0.00019452,2]
[363176629,1748613048602,-824.61,0.00019452,2]
[363176630,1748613048611,-739.65,0.00019452,2]
[363176631,1748613048620,-430.0,0.00019452,2]
[363176632,1748613048630,-4093.66,0.00019452,2]
[363176633,1748613048639,-430.0,0.00019452,2]
[363176634,1748613048648,-430.0,0.00019452,2]
[363176635,1748613048657,-1257.12,0.00019452,2]
[363176636,1748613048668,-5783.14,0.00019452,2]
[363176637,1748613048678,-430.0,0.00019452,2]
[363176638,1748613048688,-485.33,0.00019452,2]
[363176639,1748613048697,-430.0,0.00019452,2]
[363176640,1748613048707,-463.40906392,0.00019452,2]
[363176641,1748613048716,-1220.08,0.00019452,2]
[363176642,1748613048726,-893.27,0.00019452,2]
[363176643,1748613048737,-785.41,0.00019452,2]
[363176644,1748613048748,-430.0,0.00019452,2]
[363176645,1748613048758,-394.89,0.00019452,2]
[363176646,1748613048768,-430.0,0.00019452,2]
[363176647,1748613048779,-430.0,0.00019452,2]
[363176648,1748613048788,-632.91,0.00019452,2]
[363176649,1748613048798,-430.0,0.00019452,2]
[363176650,1748613048807,-683.66,0.00019452,2]
[363176651,1748613048817,-151.0,0.00019452,2]
[363176652,1748613048829,-430.0,0.00019452,2]
[363176653,1748613048839,-430.0,0.00019452,2]
[363176654,1748613048848,-571.19,0.00019452,2]
[363176655,1748613048858,-798.25,0.00019452,2]
[363176656,1748613048868,-4646.8,0.00019452,2]
[363176657,1748613048878,-628.43,0.00019452,2]
[363176658,1748613048887,-430.0,0.00019452,2]
[363176659,1748613048897,-641.7,0.00019452,2]
[363176660,1748613048907,-972.06,0.00019452,2]
[363176661,1748613048919,-430.0,0.00019452,2]
[363176662,1748613048929,-3608.65,0.00019452,2]
[363176663,1748613048939,-1361.21,0.00019452,2]
[363176664,1748613048949,-430.0,0.00019452,2]
[363176665,1748613048959,-430.0,0.00019452,2]
[363176666,1748613048970,-500.0,0.00019452,2]
[363176667,1748613048981,-3492.68,0.00019452,2]
[363176668,1748613048991,-1567.97,0.00019452,2]
[363176669,1748613049002,-430.0,0.00019452,2]
[363176670,1748613049016,-430.0,0.00019452,2]
[363176671,1748613049033,-603.33,0.00019452,2]
[363176672,1748613049048,-918.7,0.00019452,2]
[363176673,1748613049061,-479.76,0.00019452,2]
[363176674,1748613049074,-430.0,0.00019452,2]
[363176675,1748613049088,-441.1,0.00019452,2]
[363176676,1748613049102,-430.0,0.00019452,2]
[363176677,1748613049116,-933.36,0.00019452,2]
[363176678,1748613049130,-1127.29,0.00019452,2]
[363176679,1748613049145,-430.0,0.00019452,2]
[363176680,1748613049161,-1627.33,0.00019452,2]
[363176681,1748613049176,-430.0,0.00019452,2]
[363176682,1748613049191,-744.21,0.00019452,2]
[363176683,1748613049205,-256.63146271,0.00019452,2]
[363176684,1748613049219,-607.75,0.00019452,2]
[363176685,1748613049235,-430.0,0.00019452,2]
[363176686,1748613049250,-430.0,0.00019452,2]
[363176687,1748613049265,-2375.25,0.00019452,2]
[363176688,1748613049277,-430.0,0.00019452,2]
[363176689,1748613049290,-430.0,0.00019452,2]
[363176690,1748613049303,-430.0,0.00019452,2]
[363176691,1748613049316,-430.0,0.00019452,2]
[363176692,1748613049331,-2994.36,0.00019452,2]
[363176693,1748613049343,-1016.84,0.00019452,2]
[363176694,1748613049357,-430.0,0.00019452,2]
[363176695,1748613049372,-2410.19,0.00019452,2]
[363176696,1748613049386,-480.64,0.00019452,2]
[363176697,1748613049398,-652.32,0.00019452,2]
[363176698,1748613049409,-347.03578636,0.00019452,2]
[363176699,1748613049424,-495.09,0.00019452,2]
[363176700,1748613049437,-430.0,0.00019452,2]
[363176701,1748613049452,-430.0,0.00019452,2]
[363176702,1748613049466,-430.0,0.00019452,2]
[363176703,1748613049478,-639.88,0.00019452,2]
[363176704,1748613049491,-2025.31,0.00019452,2]
[363176705,1748613049504,-4340.74,0.00019452,2]
[363176706,1748613049517,-430.0,0.00019452,2]
[363176707,1748613049528,-430.0,0.00019452,2]
[363176708,1748613049539,-181.08010149,0.00019453,2]
[363176709,1748613049551,-1140.85,0.000195,2]
[363176710,1748613049564,-247.26723898,0.00019508,2]
[363176711,1748613049577,-6190.22188736,0.00019521,2]
[363176712,1748613049589,-1000.0,0.00019583,2]
[363176713,1748613049602,-255.0,0.00019643,2]
[363176714,1748613049614,-952.58375257,0.00019675,2]
[363176715,1748613049626,-402.94663345,0.00019721,2]
[363176716,1748613049638,-1000.0,0.00019721,2]
[363176717,1748613049650,-530.42828225,0.00019723,2]
[363176718,1748613049662,-430.0,0.00019725,2]
[363176719,1748613049676,-1987.99,0.00019725,2]
[363176720,1748613049688,-1285.02,0.00019725,2]
[363176721,1748613049701,-430.0,0.00019725,2]
[363176722,1748613049713,-430.0,0.00019725,2]
[363176723,1748613049727,-430.0,0.00019725,2]
[363176724,1748613049739,-1699.19,0.00019725,2]
[363176725,1748613049753,-533.82,0.00019725,2]
[363176726,1748613049766,-5539.24,0.00019725,2]
[363176727,1748613049790,-430.0,0.00019725,2]
[363176728,1748613049803,-1112.77,0.00019725,2]
[363176729,1748613049817,-430.0,0.00019725,2]
[363176730,1748613049832,-2177.71,0.00019725,2]
[363176731,1748613049844,-430.0,0.00019726,2]
[363176732,1748613049855,-430.0,0.00019726,2]
[363176733,1748613049867,-430.0,0.00019726,2]
[363176734,1748613049879,-430.0,0.00019726,2]
[363176735,1748613049892,-430.0,0.00019726,2]
[363176736,1748613049904,-430.0,0.00019726,2]
[363176737,1748613049916,-430.0,0.00019726,2]
[363176738,1748613049929,-430.0,0.00019726,2]
[363176739,1748613049941,-824.46,0.00019726,2]
[363176740,1748613049953,-607.68,0.00019726,2]
[363176741,1748613049964,-430.0,0.00019726,2]
[363176742,1748613049976,-380.61293867,0.00019726,2]
[363176743,1748613049988,-430.0,0.00019726,2]
[363176744,1748613049999,-430.0,0.00019726,2]
[363176745,1748613050012,-652.05,0.00019726,2]
[363176746,1748613050024,-430.0,0.00019726,2]
[363176747,1748613050037,-430.0,0.00019726,2]
[363176748,1748613050049,-430.0,0.00019726,2]
[363176749,1748613050061,-430.0,0.00019726,2]
[363176750,1748613050073,-993.61,0.00019726,2]
[363176751,1748613050085,-430.0,0.00019726,2]
[363176752,1748613050096,-430.0,0.00019726,2]
[363176753,1748613050108,-430.0,0.00019726,2]
[363176754,1748613050120,-430.0,0.00019726,2]
[363176755,1748613050132,-430.0,0.00019726,2]
[363176756,1748613050145,-430.0,0.00019726,2]
[363176757,1748613050157,-2452.41,0.00019726,2]
[363176758,1748613050170,-430.0,0.00019726,2]
[363176759,1748613050181,-430.0,0.00019726,2]
[363176760,1748613050193,-824.61,0.00019726,2]
[363176761,1748613050205,-739.65,0.00019726,2]
[363176762,1748613050217,-430.0,0.00019726,2]
[363176763,1748613050229,-4093.66,0.00019726,2]
[363176764,1748613050240,-430.0,0.00019726,2]
[363176765,1748613050252,-430.0,0.00019726,2]
[363176766,1748613050264,-1257.12,0.00019726,2]
[363176767,1748613050276,-5783.14,0.00019726,2]
[363176768,1748613050287,-485.33,0.00019726,2]
[363176769,1748613050299,-430.0,0.00019726,2]
[363176770,1748613050311,-1220.08,0.00019726,2]
[363176771,1748613050322,-893.27,0.00019726,2]
[363176772,1748613050334,-785.41,0.00019726,2]
[363176773,1748613050345,-430.0,0.00019726,2]
[363176774,1748613050357,-430.0,0.00019726,2]
[363176775,1748613050371,-430.0,0.00019726,2]
[363176776,1748613050383,-632.91,0.00019726,2]
[363176777,1748613050395,-199.05592697,0.00019726,2]
[363176778,1748613050407,-683.66,0.00019726,2]
[363176779,1748613050420,-430.0,0.00019726,2]
[363176780,1748613050433,-571.19,0.00019726,2]
[363176781,1748613050443,-798.25,0.00019726,2]
[363176782,1748613050452,-4646.8,0.00019726,2]
[363176783,1748613050666,-628.43,0.00019726,2]
[363176784,1748613050701,-430.0,0.00019726,2]
[363176785,1748613050719,-641.7,0.00019726,2]
[363176786,1748613050728,-972.06,0.00019726,2]
[363176787,1748613050738,-430.0,0.00019726,2]
[363176788,1748613050749,-3608.65,0.00019726,2]
[363176789,1748613050758,-1361.21,0.00019726,2]
[363176790,1748613050768,-430.0,0.00019726,2]
[363176791,1748613050777,-430.0,0.00019726,2]
[363176792,1748613050786,-3492.68,0.00019726,2]
[363176793,1748613050794,-1567.97,0.00019726,2]
[363176794,1748613050803,-430.0,0.00019726,2]
[363176795,1748613050812,-439.47374667,0.00019726,2]
[363176796,1748613050821,-603.33,0.00019726,2]
[363176797,1748613050831,-918.7,0.00019726,2]
[363176798,1748613050840,-479.76,0.00019726,2]
[363176799,1748613050848,-430.0,0.00019726,2]
[363176800,1748613050857,-441.1,0.00019726,2]
[363176801,1748613050866,-430.0,0.00019726,2]
[363176802,1748613050875,-933.36,0.00019726,2]
[363176803,1748613050884,-1127.29,0.00019726,2]
[363176804,1748613050893,-1627.33,0.00019726,2]
[363176805,1748613050902,-430.0,0.00019726,2]
[363176806,1748613050911,-744.21,0.00019726,2]
[363176807,1748613050922,-607.75,0.00019726,2]
[363176808,1748613050931,-430.0,0.00019726,2]
[363176809,1748613050940,-430.0,0.00019726,2]
[363176810,1748613050949,-2375.25,0.00019726,2]
[363176811,1748613050958,-430.0,0.00019726,2]
[363176812,1748613050967,-430.0,0.00019726,2]
[363176813,1748613050976,-2994.36,0.00019726,2]
[363176814,1748613050986,-1016.84,0.00019726,2]
[363176815,1748613050995,-2410.19,0.00019726,2]
[363176816,1748613051003,-480.64,0.00019726,2]
[363176817,1748613051012,-652.32,0.00019726,2]
[363176818,1748613051021,-495.09,0.00019726,2]
[363176819,1748613051030,-430.0,0.00019726,2]
[363176820,1748613051039,-430.0,0.00019726,2]
[363176821,1748613051048,-430.0,0.00019726,2]
[363176822,1748613051057,-639.88,0.00019726,2]
[363176823,1748613051065,-2025.31,0.00019726,2]
[363176824,1748613051074,-4340.74,0.00019726,2]
[363176825,1748613051083,-183.22731964,0.00019726,2]
[363176826,1748613051092,-6190.22188736,0.00019728,2]
[363176827,1748613051101,-5000.0,0.00019745,2]
[363176828,1748613051110,-69925.01852611,0.000198,2]
[363176829,1748613051120,-728.4905794,0.00019863,2]
[363176830,1748613051129,-364.2452897,0.00019863,2]
[363176831,1748613051137,-364.2452897,0.00019863,2]
[363176832,1748613051146,-6190.22188736,0.00019934,2]
[363176833,1748613051155,-2109.37,0.00019972,2]
[363176834,1748613051163,-2109.37,0.00019972,2]
[363176835,1748613051173,-2109.37,0.00019972,2]
[363176836,1748613051181,-2109.37,0.00019972,2]
[363176837,1748613051190,-2109.37,0.00019972,2]
[363176838,1748613051199,-2109.37,0.00019972,2]
[363176839,1748613051208,-2109.37,0.00019972,2]
[363176840,1748613051218,-2109.37,0.00019972,2]
[363176841,1748613051227,-2109.37,0.00019972,2]
[363176842,1748613051235,-2109.37,0.00019972,2]
[363176843,1748613051245,-2109.37,0.00019972,2]
[363176844,1748613051254,-2109.37,0.00019972,2]
[363176845,1748613051263,-2109.37,0.00019972,2]
[363176846,1748613051272,-2109.37,0.00019972,2]
[363176847,1748613051281,-2109.37,0.00019972,2]
[363176848,1748613051290,-2109.37,0.00019972,2]
[363176849,1748613051299,-2109.37,0.00019972,2]
[363176850,1748613051308,-2109.37,0.00019972,2]
[363176851,1748613051317,-2109.37,0.00019972,2]
[363176852,1748613051326,-2109.37,0.00019972,2]
[363176853,1748613051335,-2109.37,0.00019972,2]
[363176854,1748613051343,-2109.37,0.00019972,2]
[363176855,1748613051353,-2109.37,0.00019972,2]
[363176856,1748613051362,-2109.39931438,0.00019972,2]
[363176857,1748613051372,-151.0,0.00019972,2]
[363176858,1748613051383,-500.0,0.00019973,2]
[363176859,1748613051392,-500.0,0.00019973,2]
[363176860,1748613051401,-500.0,0.00019973,2]
[363176861,1748613051411,-500.0,0.00019973,2]
[363176862,1748613051422,-500.0,0.00019973,2]
[363176863,1748613051431,-501.8360678,0.00019973,2]
[363176864,1748613051441,-500.0,0.00019973,2]
[363176865,1748613051450,-502.63146405,0.00019973,2]
[363176866,1748613051459,-500.0,0.00019973,2]
[363176867,1748613051468,-500.0,0.00019973,2]
[363176868,1748613051477,-500.0,0.00019973,2]
[363176869,1748613051486,-500.0,0.00019973,2]
[363176870,1748613051495,-500.0,0.00019973,2]
[363176871,1748613051504,-500.0,0.00019973,2]
[363176872,1748613051513,-372.48068192,0.00019973,2]
[363176873,1748613051522,-500.0,0.00019973,2]
[363176874,1748613051531,-500.0,0.00019973,2]
[363176875,1748613051540,-500.0,0.00019973,2]
[363176876,1748613051549,-500.0,0.00019973,2]
[363176877,1748613051558,-500.0,0.00019973,2]
[363176878,1748613051566,-160.15275943,0.00019973,2]
[363176879,1748613051575,-500.0,0.00019973,2]
[363176880,1748613051584,-500.0,0.00019973,2]
[363176881,1748613051594,-500.0,0.00019973,2]
[363176882,1748613051603,-500.0,0.00019973,2]
[363176883,1748613051613,-500.0,0.00019973,2]
[363176884,1748613051622,-500.0,0.00019973,2]
[363176885,1748613051632,-500.0,0.00019973,2]
[363176886,1748613051641,-500.0,0.00019973,2]
[363176887,1748613051651,-500.0,0.00019973,2]
[363176888,1748613051660,-505.97416407,0.00019973,2]
[363176889,1748613051671,-153.38429643,0.00019973,2]
[363176890,1748613051681,-500.0,0.00019973,2]
[363176891,1748613051691,-500.55241831,0.00019973,2]
[363176892,1748613051700,-500.0,0.00019973,2]
[363176893,1748613051709,-500.0,0.00019973,2]
[363176894,1748613051718,-500.0,0.00019973,2]
[363176895,1748613051727,-503.63052869,0.00019973,2]
[363176896,1748613051737,-500.0,0.00019973,2]
[363176897,1748613051749,-500.0,0.00019973,2]
[363176898,1748613051758,-500.0,0.00019973,2]
[363176899,1748613051767,-500.0,0.00019973,2]
[363176900,1748613051776,-430.0,0.00019999,2]
[363176901,1748613051786,-1987.99,0.00019999,2]
[363176902,1748613051795,-1285.02,0.00019999,2]
[363176903,1748613051805,-430.0,0.00019999,2]
[363176904,1748613051815,-430.0,0.00019999,2]
[363176905,1748613051824,-430.0,0.00019999,2]
[363176906,1748613051833,-1699.19,0.00019999,2]
[363176907,1748613051843,-533.82,0.00019999,2]
[363176908,1748613051852,-5539.24,0.00019999,2]
[363176909,1748613051861,-430.0,0.00019999,2]
[363176910,1748613051870,-1112.77,0.00019999,2]
[363176911,1748613051879,-430.0,0.00019999,2]
[363176912,1748613051889,-2177.71,0.00019999,2]
[363176913,1748613051898,-646.79651603,0.0002,2]
[363176914,1748613051909,-500.3174076,0.0002,2]
[363176915,1748613051920,-430.0,0.0002,2]
[363176916,1748613051930,-430.0,0.0002,2]
[363176917,1748613051939,-430.0,0.0002,2]
[363176918,1748613051948,-175.65118638,0.0002,2]
[363176919,1748613051957,-430.0,0.0002,2]
[363176920,1748613051966,-146922.94345314,0.0002,2]
[363176921,1748613051976,-430.0,0.0002,2]
[363176922,1748613051985,-151.0,0.0002,2]
[363176923,1748613051995,-163.20819819,0.0002,2]
[363176924,1748613052005,-151.0,0.0002,2]
[363176925,1748613052014,-430.0,0.0002,2]
[363176926,1748613052024,-824.46,0.0002,2]
[363176927,1748613052033,-607.68,0.0002,2]
[363176928,1748613052043,-430.0,0.0002,2]
[363176929,1748613052052,-430.0,0.0002,2]
[363176930,1748613052061,-430.0,0.0002,2]
[363176931,1748613052071,-652.05,0.0002,2]
[363176932,1748613052080,-430.0,0.0002,2]
[363176933,1748613052090,-430.0,0.0002,2]
[363176934,1748613052099,-430.0,0.0002,2]
[363176935,1748613052109,-430.0,0.0002,2]
[363176936,1748613052118,-993.61,0.0002,2]
[363176937,1748613052127,-430.0,0.0002,2]
[363176938,1748613052136,-302.33280278,0.0002,2]
[363176939,1748613052145,-430.0,0.0002,2]
[363176940,1748613052154,-430.0,0.0002,2]
[363176941,1748613052163,-430.0,0.0002,2]
[363176942,1748613052173,-430.0,0.0002,2]
[363176943,1748613052183,-2452.41,0.0002,2]
[363176944,1748613052192,-151.0,0.0002,2]
[363176945,1748613052202,-430.0,0.0002,2]
[363176946,1748613052211,-430.0,0.0002,2]
[363176947,1748613052220,-824.61,0.0002,2]
[363176948,1748613052229,-739.65,0.0002,2]
[363176949,1748613052238,-430.0,0.0002,2]
[363176950,1748613052247,-4093.66,0.0002,2]
[363176951,1748613052256,-514.20355404,0.0002,2]
[363176952,1748613052266,-1257.12,0.0002,2]
[363176953,1748613052275,-485.33,0.0002,2]
[363176954,1748613052285,-5783.14,0.0002,2]
[363176955,1748613052294,-430.0,0.0002,2]
[363176956,1748613052303,-1220.08,0.0002,2]
[363176957,1748613052312,-893.27,0.0002,2]
[363176958,1748613052322,-785.41,0.0002,2]
[363176959,1748613052330,-430.0,0.0002,2]
[363176960,1748613052339,-481.42550371,0.0002,2]
[363176961,1748613052348,-632.91,0.0002,2]
[363176962,1748613052357,-683.66,0.0002,2]
[363176963,1748613052365,-430.0,0.0002,2]
[363176964,1748613052374,-571.19,0.0002,2]
[363176965,1748613052384,-798.25,0.0002,2]
[363176966,1748613052393,-4646.8,0.0002,2]
[363176967,1748613052402,-628.43,0.0002,2]
[363176968,1748613052411,-430.0,0.0002,2]
[363176969,1748613052421,-641.7,0.0002,2]
[363176970,1748613052428,-972.06,0.0002,2]
[363176971,1748613052435,-430.0,0.0002,2]
[363176972,1748613052441,-3608.65,0.0002,2]
[363176973,1748613052448,-398.895474,0.0002,2]
[363176974,1748613052457,-1361.21,0.0002,2]
[363176975,1748613052463,-430.0,0.0002,2]
[363176976,1748613052470,-398.895474,0.0002,2]
[363176977,1748613052477,-430.0,0.0002,2]
[363176978,1748613052484,-3492.68,0.0002,2]
[363176979,1748613052491,-1567.97,0.0002,2]
[363176980,1748613052499,-430.0,0.0002,2]
[363176981,1748613052507,-603.33,0.0002,2]
[363176982,1748613052515,-918.7,0.0002,2]
[363176983,1748613052522,-151.0,0.0002,2]
[363176984,1748613052530,-151.0,0.0002,2]
[363176985,1748613052538,-479.76,0.0002,2]
[363176986,1748613052546,-430.0,0.0002,2]
[363176987,1748613052555,-441.1,0.0002,2]
[363176988,1748613052563,-933.36,0.0002,2]
[363176989,1748613052571,-1127.29,0.0002,2]
[363176990,1748613052578,-1627.33,0.0002,2]
[363176991,1748613052584,-430.0,0.0002,2]
[363176992,1748613052592,-744.21,0.0002,2]
[363176993,1748613052600,-607.75,0.0002,2]
[363176994,1748613052607,-151.0,0.0002,2]
[363176995,1748613052613,-430.0,0.0002,2]
[363176996,1748613052620,-430.0,0.0002,2]
[363176997,1748613052627,-2375.25,0.0002,2]
[363176998,1748613052635,-430.0,0.0002,2]
[363176999,1748613052643,-430.0,0.0002,2]
[363177000,1748613052652,-2994.36,0.0002,2]
[363177001,1748613052660,-1016.84,0.0002,2]
[363177002,1748613052668,-2410.19,0.0002,2]
[363177003,1748613052677,-480.64,0.0002,2]